bitfinex-derivatives/quotes_ETHF0:USTF0_20260204
["timestamp","ask_amount","ask_price","bid_price","bid_amount"]
[1770173245957,0.00542783,2256.4,2255.5,2.46680593]
[1770173246861,2.40788689,2256.4,2255.5,2.46680593]
[1770173247666,2.40788689,2256.4,2255.5,0.00489641]
[1770173247960,2.40788689,2256.4,2255.2,2.46190952]
[1770173248167,2.40788689,2256.4,2254.8,2.46190952]
[1770173248461,2.07722301,2256.1,2254.8,2.46190952]
[1770173248662,2.40245906,2256.0,2254.8,2.46190952]
[1770173249059,2.40245906,2256.0,2254.8,2.46747032]
[1770173250066,2.40245906,2256.3,2254.8,2.68953032]
[1770173252469,0.00542783,2256.4,2255.0,2.46190952]
[1770173252666,2.40788689,2256.4,2255.2,2.46190952]
[1770173253774,2.40245906,2257.0,2255.4,2.46190952]
[1770173254971,2.40766798,2257.0,2255.4,2.46190952]
[1770173255570,2.40766798,2257.0,2255.8,2.46190952]
[1770173255767,2.40245906,2256.6,2255.5,2.46190952]
[1770173256071,2.07722301,2256.7,2254.9,2.46190952]
[1770173256072,2.40245906,2256.2,2254.9,2.46190952]
[1770173258167,2.40245906,2256.2,2255.3,2.46190952]
[1770173259877,5.554,2256.3,2255.3,2.46190952]
[1770173260077,2.40245906,2256.5,2255.3,2.46190952]
[1770173260977,6.83845906,2256.8,2255.6,2.46190952]
[1770173261275,2.40245906,2256.7,2255.6,2.46190952]
[1770173261872,4.47968207,2256.7,2255.5,0.222]
[1770173262069,2.40245906,2256.6,2255.5,0.222]
[1770173262473,2.40245906,2256.6,2255.5,2.68390952]
[1770173263076,5.24274036,2256.7,2255.5,2.68390952]
[1770173263274,2.40245906,2255.8,2254.8,3.96756093]
[1770173263476,2.40245906,2255.8,2254.8,2.46747032]
[1770173264077,1.883,2256.0,2254.8,2.46747032]
[1770173264078,4.28545906,2256.0,2254.8,2.46747032]
[1770173264477,2.40245906,2255.9,2254.8,2.46747032]
[1770173267676,2.07722301,2255.5,2254.1,2.46190952]
[1770173267882,2.40245906,2255.4,2254.1,2.46190952]
[1770173268781,2.4062669,2255.4,2254.1,2.46506234]
[1770173269376,1.886,2255.3,2254.1,2.46506234]
[1770173269573,2.40245906,2255.2,2254.1,2.46506234]
[1770173269776,2.40245906,2255.2,2254.1,0.00315282]
[1770173269976,2.07722301,2254.7,2253.5,2.46190952]
[1770173270281,2.40245906,2254.9,2253.5,2.68409952]
[1770173270881,2.40245906,2254.9,2253.5,2.68824417]
[1770173271377,41.8291396,2255.3,2253.5,2.46605417]
[1770173271583,2.4515608,2255.3,2254.2,2.41575432]
[1770173271982,0.00380784,2255.4,2254.4,2.41575432]
[1770173273484,0.00380784,2255.4,2254.6,2.41575432]
[1770173273883,2.45536864,2255.4,2254.5,2.63784432]
[1770173275086,0.00380784,2255.4,2254.5,2.63784432]
[1770173279586,2.49962872,2255.4,2254.1,2.4112153]
[1770173279887,2.49962872,2255.4,2254.1,2.6333453]
[1770173280884,2.49962872,2255.4,2254.3,2.6333253]
[1770173282985,0.00380784,2255.4,2254.5,2.6333053]
[1770173284581,2.49962872,2255.4,2254.2,2.4112153]
[1770173285388,2.49962872,2255.4,2254.2,0.22212]
[1770173286894,2.49582088,2255.1,2253.8,2.4112153]
[1770173287187,2.49582088,2254.9,2253.8,2.4112153]
[1770173287786,2.49582088,2254.8,2253.7,0.22217]
[1770173288190,2.49582088,2254.8,2253.7,2.6333853]
[1770173289590,2.49582088,2254.8,2253.5,0.00414465]
[1770173289786,41.87339968,2254.8,2253.5,0.00414465]
[1770173289987,2.49582088,2254.7,2253.5,0.00414465]
[1770173290486,2.49582088,2254.6,2253.5,0.00414465]
[1770173291690,2.49582088,2254.6,2253.1,2.4112153]
[1770173291986,2.49582088,2254.4,2253.1,2.4112153]
[1770173292192,2.49582088,2254.2,2253.1,2.4112153]
[1770173292687,2.49582088,2254.2,2253.1,2.41585475]
[1770173293291,1.893,2254.4,2253.3,2.4112153]
[1770173293693,2.49582088,2254.8,2253.3,2.4112153]
[1770173293893,1.893,2254.7,2253.3,2.4112153]
[1770173294085,4.38882088,2254.7,2253.3,2.4112153]
[1770173294386,2.49582088,2254.6,2253.1,2.41585475]
[1770173294786,2.49582088,2254.4,2253.1,2.41585475]
[1770173294992,41.87339968,2254.4,2253.1,2.41585475]
[1770173295191,2.49582088,2254.3,2253.1,2.41585475]
[1770173295584,2.49582088,2254.3,2253.1,0.00463945]
[1770173295792,4.39082088,2254.4,2253.3,2.4112153]
[1770173295988,2.49582088,2254.3,2253.3,2.4112153]
[1770173296189,4.39082088,2254.4,2253.3,2.4112153]
[1770173296489,2.49582088,2254.3,2253.3,2.4112153]
[1770173296784,2.49582088,2254.3,2253.3,2.6334253]
[1770173297291,2.49582088,2254.4,2253.3,2.6334253]
[1770173297995,2.49582088,2254.4,2253.3,2.4112153]
[1770173310399,2.30824852,2253.6,2252.1,2.44753042]
[1770173310603,2.30824852,2253.3,2252.1,2.44753042]
[1770173311401,2.31351692,2253.3,2252.1,2.45194275]
[1770173311601,2.30824852,2253.2,2252.1,2.45194275]
[1770173311805,2.30824852,2253.1,2252.1,2.45194275]
[1770173312007,2.30824852,2253.1,2252.1,0.00441233]
[1770173312205,2.30824852,2253.0,2251.8,2.44753042]
[1770173312402,1.9,2252.9,2251.8,2.44753042]
[1770173312608,4.20824852,2252.9,2251.8,2.44753042]
[1770173312908,2.30824852,2252.8,2251.8,2.44753042]
[1770173313206,1.9,2252.9,2251.8,2.67330182]
[1770173314408,2.30824852,2252.8,2251.8,2.67330182]
[1770173315909,2.30824852,2253.1,2251.8,2.67330182]
[1770173316215,1.452,2253.0,2251.8,2.67330182]
[1770173316507,0.0052684,2253.3,2252.1,2.44753042]
[1770173316706,1.898,2253.2,2252.1,2.44753042]
[1770173316904,4.20624852,2253.2,2252.1,2.44753042]
[1770173317207,2.30824852,2253.1,2252.1,2.44753042]
[1770173317606,2.30824852,2253.1,2251.8,2.45094182]
[1770173320509,2.30824852,2253.0,2251.8,2.45094182]
[1770173321209,41.2755788,2253.2,2252.0,2.44753042]
[1770173321210,6.81636631,2253.2,2252.0,2.44753042]
[1770173321609,2.30824852,2253.1,2252.0,2.44753042]
[1770173321909,2.30824852,2253.1,2252.1,0.22233]
[1770173322105,2.30824852,2253.1,2252.1,2.66986042]
[1770173323816,2.30824852,2253.1,2251.8,2.45094182]
[1770173324417,2.30824852,2253.0,2251.8,2.45094182]
[1770173325014,2.30824852,2253.0,2250.9,5.66474718]
[1770173325015,2.30824852,2252.8,2251.3,2.44753042]
[1770173325314,2.30824852,2252.6,2251.3,2.44753042]
[1770173325717,2.30824852,2252.6,2251.3,2.66994042]
[1770173325912,2.30824852,2252.6,2251.3,2.45186791]
[1770173326117,2.30824852,2252.4,2251.3,2.45186791]
[1770173326517,2.30824852,2252.4,2251.3,0.00433749]
[1770173327410,2.30824852,2252.4,2250.7,0.22247]
[1770173327717,2.30824852,2252.4,2250.7,2.67000042]
[1770173327718,2.30824852,2252.2,2250.7,2.67000042]
[1770173328714,2.30824852,2252.2,2250.7,2.67369961]
[1770173329017,2.30824852,2252.2,2250.7,2.45122961]
[1770173329312,2.30824852,2252.1,2250.7,0.00369919]
[1770173329619,2.30824852,2252.0,2250.7,0.00369919]
[1770173329821,2.30824852,2251.6,2250.2,2.44753042]
[1770173330022,2.30824852,2251.4,2250.2,2.44753042]
[1770173330918,2.31337425,2251.4,2250.2,2.45144099]
[1770173331821,0.00512573,2251.4,2250.4,2.38793328]
[1770173332119,2.34951773,2251.4,2250.4,2.38793328]
[1770173333818,0.00512573,2251.4,2250.4,2.38793328]
[1770173334218,2.34951773,2251.4,2250.4,2.38793328]
[1770173335421,0.00512573,2251.4,2250.4,2.38793328]
[1770173336324,0.00512573,2251.4,2249.5,2.64297189]
[1770173336325,2.42006743,2251.2,2249.8,2.49476052]
[1770173337327,2.42006743,2251.2,2249.8,2.72058511]
[1770173340730,2.42006743,2251.2,2249.2,2.49476052]
[1770173340731,2.42006743,2250.2,2249.2,2.49476052]
[1770173340933,2.42006743,2250.2,2248.9,2.93937508]
[1770173341423,2.42006743,2250.2,2248.9,2.71672508]
[1770173342421,2.42006743,2250.2,2248.9,0.22651695]
[1770173343730,2.42006743,2250.2,2248.9,2.72127747]
[1770173344533,2.42006743,2250.2,2248.9,0.22651695]
[1770173344731,2.42006743,2250.2,2248.9,2.72127747]
[1770173344931,2.42006743,2250.2,2249.1,2.49476052]
[1770173345630,6.065,2250.5,2249.1,2.71739052]
[1770173345829,4.445,2250.5,2249.1,2.49476052]
[1770173346035,2.42006743,2250.5,2249.3,2.49476052]
[1770173346334,2.42006743,2250.5,2249.3,2.71737052]
[1770173346828,2.42006743,2250.5,2249.0,2.49476052]
[1770173347038,2.42006743,2250.2,2249.0,2.49476052]
[1770173347331,2.42006743,2249.4,2248.4,2.49476052]
[1770173348034,2.42006743,2250.0,2248.4,2.49476052]
[1770173348233,2.42006743,2249.9,2248.4,2.49476052]
[1770173348434,2.42582206,2249.9,2248.4,2.49838345]
[1770173350339,2.42582206,2249.9,2248.4,2.72108345]
[1770173350540,2.42582206,2249.9,2248.6,2.49476052]
[1770173350741,2.42582206,2249.9,2248.6,2.71744052]
[1770173351838,0.00575463,2249.9,2248.6,2.71744052]
[1770173352344,2.42582206,2249.9,2248.6,2.71744052]
[1770173353237,2.42582206,2249.9,2248.6,2.49476052]
[1770173353442,2.42006743,2249.4,2248.4,2.49838345]
[1770173353641,2.42006743,2249.8,2248.4,2.49838345]
[1770173356451,0.00575463,2249.9,2248.7,2.49476052]
[1770173356745,2.42582206,2249.9,2248.7,2.71742052]
[1770173358743,2.42582206,2249.9,2248.9,2.49476052]
[1770173359350,0.00575463,2249.9,2249.2,2.49476052]
[1770173360246,2.42582206,2249.9,2248.9,2.49476052]
[1770173362850,0.00575463,2249.9,2248.9,2.49476052]
[1770173363044,0.00575463,2249.9,2249.2,2.34479861]
[1770173363244,2.45820856,2250.4,2249.2,2.34479861]
[1770173363443,2.45820856,2250.4,2249.3,2.56740861]
[1770173364343,5.06699696,2250.4,2249.3,2.56740861]
[1770173364749,2.45820856,2250.3,2249.3,2.56740861]
[1770173365343,2.45820856,2250.1,2249.0,2.34479861]
[1770173365947,5.06161306,2250.3,2249.2,2.34479861]
[1770173366353,2.45820856,2250.2,2249.2,2.34479861]
[1770173366649,2.45820856,2250.2,2249.2,2.56741861]
[1770173367250,5.06161306,2250.2,2249.2,2.56741861]
[1770173367654,2.45820856,2250.1,2249.2,2.56741861]
[1770173368147,2.6034045,2250.2,2249.2,2.56741861]
[1770173369848,2.6034045,2250.2,2249.6,2.34479861]
[1770173370054,0.0053839,2250.4,2249.8,1.60842155]
[1770173370254,2.46359246,2250.4,2249.7,0.22257]
[1770173370852,2.46359246,2250.4,2249.2,1.82789111]
[1770173371047,2.45820856,2250.3,2249.2,0.22262]
[1770173372060,2.45820856,2250.3,2248.9,1.60527111]
[1770173372061,2.45820856,2250.2,2248.9,1.60527111]
[1770173373656,2.45820856,2250.1,2249.1,1.59119798]
[1770173374056,2.45820856,2250.1,2249.0,0.22263]
[1770173374756,2.45820856,2249.8,2248.5,0.22269]
[1770173375156,2.45820856,2249.7,2248.5,0.22269]
[1770173375458,39.3775788,2249.4,2248.4,0.00362293]
[1770173375658,2.45820856,2249.2,2248.1,0.22272]
[1770173376058,2.45820856,2249.2,2248.1,1.81355415]
[1770173376658,2.45820856,2249.2,2248.1,1.81925892]
[1770173377258,2.45820856,2249.1,2248.1,1.81925892]
[1770173378760,2.45820856,2249.1,2248.1,0.22842477]
[1770173380554,2.45820856,2249.1,2248.1,1.86097066]
[1770173380752,2.45820856,2249.1,2248.1,0.22842477]
[1770173382068,2.45820856,2249.1,2248.1,0.00570477]
[1770173384258,2.08814655,2248.8,2247.6,0.22277]
[1770173384465,2.38916173,2248.7,2247.2,1.62777013]
[1770173384666,2.38916173,2248.5,2247.2,1.62777013]
[1770173385162,2.38916173,2248.3,2247.1,0.22282]
[1770173385364,2.39270537,2248.3,2247.1,0.22282]
[1770173385564,2.38916173,2248.2,2247.1,0.22282]
[1770173386263,2.38916173,2248.2,2247.2,1.86374418]
[1770173386569,4.32316173,2248.2,2247.2,1.86374418]
[1770173386768,2.38916173,2248.1,2247.2,1.86374418]
[1770173387170,2.38916173,2248.1,2247.3,0.2228]
[1770173387670,2.38916173,2248.1,2246.9,1.64093418]
[1770173388275,2.38916173,2248.1,2247.0,1.58548573]
[1770173388475,2.38916173,2248.1,2247.1,0.22282]
[1770173389171,2.38916173,2248.1,2246.5,2.64297189]
[1770173389475,2.38916173,2247.9,2246.1,1.58548573]
[1770173389672,2.38916173,2247.7,2246.0,0.1]
[1770173389977,2.38916173,2247.5,2246.0,1.90842573]
[1770173390574,2.38916173,2247.5,2246.1,1.81565151]
[1770173390775,2.38916173,2247.5,2246.3,1.59273151]
[1770173390971,2.38916173,2247.5,2246.4,1.59273151]
[1770173391176,2.38916173,2247.5,2246.5,0.22288]
[1770173391680,2.38916173,2247.5,2246.6,1.81561151]
[1770173391882,2.38916173,2247.5,2246.6,0.22288]
[1770173393576,6.96107564,2247.8,2246.8,1.60506558]
[1770173393777,2.51007564,2247.7,2246.8,1.82792558]
[1770173393983,2.51007564,2247.7,2246.8,0.22286]
[1770173395586,2.51007564,2248.0,2246.7,1.60175688]
[1770173395783,2.51007564,2248.0,2247.0,0.22283]
[1770173396385,2.51007564,2248.0,2247.1,1.80738445]
[1770173400390,2.46341743,2248.9,2247.2,0.87]
[1770173400688,2.46341743,2248.9,2248.1,0.22272]
[1770173400887,2.46341743,2248.9,2248.2,0.22272]
[1770173401094,2.46341743,2248.5,2247.8,0.22276]
[1770173401296,2.46341743,2248.5,2247.4,1.57809379]
[1770173401485,2.46852814,2248.5,2247.4,1.5817588]
[1770173402192,2.46341743,2248.2,2247.4,0.00366501]
[1770173402490,2.46696107,2248.2,2247.4,0.00366501]
[1770173402684,2.46696107,2248.0,2247.4,0.00366501]
[1770173402884,2.46341743,2248.0,2247.4,0.00366501]
[1770173403085,2.46341743,2247.8,2247.4,0.00366501]
[1770173403487,2.46341743,2248.4,2247.4,0.00366501]
[1770173403685,2.46341743,2248.4,2247.4,0.22646501]
[1770173404495,2.46341743,2248.2,2247.4,0.22646501]
[1770173404988,2.46341743,2247.8,2246.5,4.19064536]
[1770173405190,2.46341743,2247.8,2246.4,0.22289]
[1770173405394,39.3775788,2247.9,2246.5,0.22288]
[1770173405395,2.46341743,2247.5,2246.5,0.22288]
[1770173407894,2.46341743,2247.5,2246.6,0.22287]
[1770173408391,2.46341743,2247.3,2246.6,0.22287]
[1770173408896,2.46696107,2247.2,2246.6,0.22287]
[1770173409090,2.46341743,2247.2,2246.6,0.22287]
[1770173409291,2.46696107,2247.2,2246.2,2.74297189]
[1770173409496,2.46341743,2246.4,2245.4,2.48119596]
[1770173409691,2.46725856,2246.4,2245.6,0.00499243]
[1770173409890,2.46725856,2246.4,2245.6,2.70915839]
[1770173410194,2.46725856,2246.4,2245.6,0.22796243]
[1770173410195,2.4708022,2246.4,2245.6,0.22796243]
[1770173410400,2.46696107,2246.3,2245.6,0.22796243]
[1770173410590,2.46341743,2246.9,2246.0,2.48119596]
[1770173411800,2.46787151,2246.9,2246.0,2.48119596]
[1770173412000,2.46787151,2246.9,2246.1,0.22292]
[1770173412200,2.46787151,2246.9,2246.1,2.70411596]
[1770173414603,2.46787151,2246.9,2246.1,0.22292]
[1770173417297,2.46787151,2246.9,2245.8,2.48119596]
[1770173417696,2.46787151,2246.9,2245.7,0.22297]
[1770173418600,2.46787151,2246.9,2245.7,2.70416596]
[1770173418800,2.46787151,2246.9,2245.7,0.22297]
[1770173420200,2.46787151,2246.9,2245.6,0.00499243]
[1770173420407,2.46341743,2246.7,2245.3,0.223]
[1770173420602,2.46341743,2246.5,2245.1,2.48119596]
[1770173420802,2.46341743,2246.5,2245.1,2.70421596]
[1770173421099,2.46341743,2246.5,2245.3,2.4347099]
[1770173421507,2.46341743,2246.5,2245.3,2.43855103]
[1770173422505,2.46341743,2246.5,2245.5,2.43970233]
[1770173422700,2.46341743,2246.5,2245.6,0.22297]
[1770173422905,2.46341743,2246.5,2245.6,2.66267233]
[1770173423107,2.46341743,2246.5,2245.7,2.43970233]
[1770173423508,2.46341743,2246.5,2245.8,0.00499243]
[1770173424211,2.46341743,2246.5,2245.6,0.22297]
[1770173424913,2.46341743,2246.5,2245.9,0.00499243]
[1770173425214,2.46341743,2246.5,2245.7,0.00499243]
[1770173425409,2.46341743,2246.5,2245.3,0.00384113]
[1770173427006,2.51746362,2246.3,2244.7,2.4347099]
[1770173427716,2.51746362,2246.3,2244.7,2.6577699]
[1770173429317,2.51746362,2246.3,2245.3,2.4347099]
[1770173429615,2.51746362,2246.3,2245.2,0.22301]
[1770173429811,2.51746362,2246.3,2245.2,2.6577199]
[1770173430917,2.51746362,2246.3,2245.2,0.22301]
[1770173431320,2.51746362,2246.3,2245.2,2.6577199]
[1770173434623,2.51746362,2246.3,2245.4,2.4347099]
[1770173435022,2.5993075,2246.8,2245.8,0.22295]
[1770173435219,2.51746362,2246.8,2245.9,2.4347099]
[1770173435522,2.51746362,2246.8,2246.1,0.22292]
[1770173435726,4.456,2247.5,2246.6,2.4347099]
[1770173435924,2.51746362,2247.7,2246.7,2.6575699]
[1770173436823,2.52119875,2247.7,2246.7,2.6575699]
[1770173437519,4.456,2248.4,2246.2,9.28900013]
[1770173437520,2.51746362,2248.5,2247.4,2.4347099]
[1770173437919,2.51746362,2248.5,2247.1,2.4347099]
[1770173438121,2.51746362,2248.4,2247.1,2.4347099]
[1770173438524,2.52070675,2248.4,2247.1,2.4347099]
[1770173440629,2.51746362,2248.3,2246.8,2.4347099]
[1770173440826,2.51746362,2248.1,2246.8,2.4347099]
[1770173441023,2.51746362,2248.1,2246.4,2.4347099]
[1770173441024,2.51746362,2248.0,2246.4,2.4347099]
[1770173442026,2.51746362,2247.9,2246.4,2.4347099]
[1770173442435,2.51746362,2247.8,2246.1,2.43845805]
[1770173442734,2.51746362,2247.5,2246.1,0.00374815]
[1770173443432,5.11677112,2247.5,2246.1,0.00374815]
[1770173443637,2.51746362,2247.4,2246.1,0.00374815]
[1770173444236,2.51746362,2247.4,2246.1,2.43845805]
[1770173445035,2.51746362,2247.4,2246.1,0.00374815]
[1770173445236,2.51746362,2247.2,2246.1,0.00374815]
[1770173445637,2.51746362,2247.2,2245.4,0.22299]
[1770173445638,2.51746362,2247.0,2245.4,2.6576999]
[1770173445932,2.51746362,2246.8,2245.4,2.6576999]
[1770173446737,2.51746362,2246.8,2245.4,2.66214096]
[1770173446738,2.52146438,2246.8,2245.4,2.66214096]
[1770173449332,2.51746362,2246.7,2245.4,2.66214096]
[1770173458149,2.51746362,2246.7,2245.6,2.23435837]
[1770173459648,2.51746362,2246.7,2245.5,0.22298]
[1770173461045,5.06704646,2246.5,2245.4,0.00444106]
[1770173461249,2.2414602,2246.2,2244.9,0.22304]
[1770173461448,2.2414602,2246.0,2244.9,0.22304]
[1770173462449,2.2414602,2246.0,2245.1,2.23435837]
[1770173464048,1.945,2246.1,2245.1,2.45737837]
[1770173464249,2.2414602,2246.3,2245.3,2.45735837]
[1770173464444,2.2414602,2246.6,2245.4,0.223]
[1770173464646,2.2414602,2246.6,2245.5,2.23435837]
[1770173464846,6.70146096,2246.8,2245.8,2.23435837]
[1770173465250,6.70146096,2246.8,2245.8,2.45730837]
[1770173465452,6.70146096,2246.8,2246.0,2.45728837]
[1770173465750,2.2414602,2246.7,2245.1,2.23435837]
[1770173466051,2.2414602,2246.5,2245.1,2.23435837]
[1770173467444,1.95,2246.6,2245.6,2.23435837]
[1770173467651,4.1914602,2246.6,2245.6,2.23435837]
[1770173467848,4.46000076,2246.8,2245.8,2.23435837]
[1770173468250,4.46000076,2246.8,2245.8,2.45730837]
[1770173469352,0.00400076,2246.8,2245.8,2.45730837]
[1770173469652,2.2414602,2247.2,2246.0,2.23435837]
[1770173469846,2.2414602,2247.5,2246.3,2.45725837]
[1770173470250,2.2414602,2247.4,2246.0,2.23435837]
[1770173470444,2.2414602,2247.3,2246.0,2.23435837]
[1770173470653,2.24624482,2247.3,2246.0,2.4608503]
[1770173471356,2.2414602,2247.2,2246.0,2.4608503]
[1770173473154,2.2414602,2247.1,2246.0,2.4608503]
[1770173474858,2.24624482,2247.3,2246.0,2.4608503]
[1770173475655,4.84894108,2247.3,2246.2,2.23435837]
[1770173476753,2.60269626,2247.5,2246.9,2.23435837]
[1770173477058,16.66811641,2247.9,2246.9,2.23435837]
[1770173477059,2.60269626,2248.1,2246.9,2.45719837]
[1770173477259,4.84415646,2248.2,2246.9,2.45719837]
[1770173477454,2.2414602,2248.1,2246.9,0.22284]
[1770173477661,4.84415646,2248.0,2246.9,0.22284]
[1770173477860,2.2414602,2247.8,2246.9,0.22284]
[1770173478059,2.2414602,2247.8,2246.9,2.45719837]
[1770173478259,1.966,2247.9,2246.9,2.45719837]
[1770173479359,4.2074602,2247.9,2246.9,2.45719837]
[1770173479760,1.966,2247.9,2246.9,2.45719837]
[1770173480663,2.24531436,2248.0,2246.9,2.45719837]
[1770173480865,2.24531436,2248.0,2247.1,1.29818138]
[1770173481064,0.00385416,2248.0,2247.1,1.29818138]
[1770173481264,5.21449134,2248.6,2247.1,1.29818138]
[1770173481265,1.33400394,2248.6,2247.4,1.52097138]
[1770173481962,1.33400394,2248.6,2247.4,1.29818138]
[1770173482260,1.33400394,2248.4,2247.1,1.29818138]
[1770173482565,1.33400394,2248.0,2246.8,1.29818138]
[1770173482863,1.33400394,2247.8,2246.8,1.29818138]
[1770173483755,1.971,2247.9,2246.8,1.52104138]
[1770173485266,1.33400394,2248.1,2246.8,1.52104138]
[1770173487162,1.33400394,2248.1,2246.8,1.29818138]
[1770173487368,1.33400394,2248.1,2247.0,1.29818138]
[1770173487772,1.33400394,2248.4,2247.2,1.29818138]
[1770173489173,1.33400394,2248.4,2247.1,0.22282]
[1770173489370,2.60269626,2248.4,2246.9,1.29818138]
[1770173489569,1.33400394,2248.1,2246.9,1.29818138]
[1770173489872,1.33400394,2248.1,2246.9,1.52102138]
[1770173490272,1.33400394,2248.0,2246.9,1.52102138]
[1770173493776,1.33400394,2247.9,2246.4,1.29818138]
[1770173493977,1.33400394,2247.9,2246.4,1.52107138]
[1770173494279,1.33400394,2247.8,2246.6,1.52105138]
[1770173496370,1.33400394,2247.8,2246.1,8.41500013]
[1770173496371,1.33400394,2247.6,2246.3,1.29818138]
[1770173496575,1.33400394,2247.1,2246.0,1.30174331]
[1770173496777,1.33400394,2246.8,2246.0,0.00356193]
[1770173496977,1.33880046,2246.8,2246.0,0.00356193]
[1770173501276,1.33880046,2246.8,2245.6,1.29818138]
[1770173501583,1.16130804,2246.6,2245.6,1.29818138]
[1770173501877,1.16130804,2246.6,2245.1,1.29818138]
[1770173501878,1.16130804,2246.4,2245.1,1.29818138]
[1770173502180,1.16130804,2246.2,2245.1,1.29818138]
[1770173502371,1.16130804,2246.2,2245.1,1.30360648]
[1770173509978,0.78339124,2245.9,2244.8,1.29818138]
[1770173510183,0.78339124,2245.9,2244.5,1.29818138]
[1770173511280,0.78339124,2245.9,2244.5,1.52491389]
[1770173512484,0.78339124,2245.9,2244.8,0.49854683]
[1770173513380,0.78339124,2245.9,2244.7,0.22306]
[1770173513785,0.78339124,2245.9,2244.7,0.72160683]
[1770173514386,0.78339124,2245.9,2244.8,0.49854683]
[1770173514985,0.78339124,2245.9,2244.7,0.22306]
[1770173515688,0.78339124,2245.9,2244.5,0.50219934]
[1770173517388,0.78339124,2245.9,2244.9,0.39134974]
[1770173517789,0.34291602,2246.2,2244.9,0.39134974]
[1770173519087,1.97431914,2246.4,2245.1,0.39134974]
[1770173519287,0.25532326,2246.3,2245.1,0.39134974]
[1770173519790,0.25532326,2246.3,2245.2,0.39134974]
[1770173522590,2.60269626,2246.7,2245.5,0.39134974]
[1770173522788,0.14072945,2246.6,2245.2,0.39134974]
[1770173522990,0.14072945,2246.5,2245.2,0.39134974]
[1770173523192,0.14072945,2246.4,2245.2,0.39134974]
[1770173524089,0.10110534,2246.3,2245.2,0.39134974]
[1770173524294,2.67051662,2246.2,2245.2,0.39134974]
[1770173524496,0.06782036,2246.1,2244.6,0.39134974]
[1770173524692,0.06782036,2245.8,2244.6,0.39134974]
[1770173524991,0.06782036,2245.7,2244.6,0.39134974]
[1770173525692,2.60269626,2245.9,2244.6,0.39134974]
[1770173525885,2.60269626,2246.1,2244.9,0.39134974]
[1770173526191,2.60269626,2246.0,2244.9,0.39134974]
[1770173526397,2.60269626,2245.9,2244.6,0.39134974]
[1770173527693,2.60269626,2245.8,2244.6,0.39134974]
[1770173527992,2.002,2245.7,2244.6,0.39134974]
[1770173529688,2.60269626,2245.8,2244.6,0.39134974]
[1770173529995,2.60269626,2245.9,2244.7,0.39134974]
[1770173530188,2.60269626,2245.9,2244.8,0.39134974]
[1770173531697,7.05969626,2246.0,2244.8,0.39134974]
[1770173532096,2.60269626,2246.0,2244.9,0.39134974]
[1770173532297,4.61769626,2246.2,2245.0,0.39134974]
[1770173532695,2.60269626,2246.3,2245.3,0.39134974]
[1770173532896,2.60269626,2246.4,2245.3,0.39134974]
[1770173533097,2.60269626,2246.4,2245.4,0.39134974]
[1770173533408,2.60269626,2246.6,2245.5,0.39134974]
[1770173533607,2.60269626,2246.6,2245.6,0.39134974]
[1770173534004,2.60749278,2246.8,2245.7,0.39134974]
[1770173534405,0.00479652,2246.8,2245.9,0.39134974]
[1770173535506,0.00479652,2246.8,2246.0,0.39134974]
[1770173535707,4.62369626,2247.5,2246.2,0.39134974]
[1770173535903,4.62369626,2247.5,2246.2,0.61425974]
[1770173536100,2.021,2247.5,2246.5,0.39134974]
[1770173536709,2.0248348,2247.5,2246.5,0.39704487]
[1770173537306,0.0038348,2247.5,2246.5,0.39704487]
[1770173539911,0.0038348,2247.5,2246.5,0.00569513]
[1770173540111,2.60269626,2247.4,2245.9,0.39134974]
[1770173540310,2.019,2247.3,2245.9,0.39134974]
[1770173540507,4.62169626,2247.3,2245.9,0.39134974]
[1770173541110,2.60269626,2247.2,2245.9,0.39410364]
[1770173541313,2.82551626,2247.2,2245.9,0.39410364]
[1770173541716,4.456,2247.1,2245.9,0.39410364]
[1770173547116,7.04188148,2247.1,2245.9,0.39410364]
[1770173548116,2.58588148,2247.2,2245.9,0.39410364]
[1770173548312,2.04,2247.1,2245.9,0.39410364]
[1770173548721,2.58588148,2247.3,2246.0,0.22293]
[1770173548915,2.58971628,2247.5,2246.2,0.18673722]
[1770173549221,2.043,2247.4,2246.2,0.18673722]
[1770173549817,2.58588148,2247.2,2246.0,0.18673722]
[1770173550018,2.58588148,2247.0,2246.0,0.18673722]
[1770173550218,2.045,2246.9,2246.0,0.18673722]
[1770173550418,4.63088148,2246.9,2245.9,0.0027539]
[1770173551818,4.63088148,2246.9,2245.9,0.18947361]
[1770173553524,4.63088148,2246.9,2245.9,0.0027539]
[1770173554425,9.08688148,2246.9,2245.9,0.18990588]
[1770173554725,9.08688148,2246.9,2245.9,0.0027539]
[1770173555227,2.58588148,2246.8,2245.9,0.0027539]
[1770173557620,2.58588148,2246.7,2245.9,0.0027539]
[1770173558131,2.58588148,2246.6,2245.9,0.0027539]
[1770173559424,2.58588148,2246.6,2245.9,0.18935694]
[1770173560827,2.063,2246.5,2245.9,0.18935694]
[1770173562823,4.64888148,2246.5,2245.9,0.18935694]
[1770173563127,2.063,2246.5,2245.9,0.18935694]
[1770173563326,4.64888148,2246.5,2245.9,0.18935694]
[1770173564231,2.063,2246.5,2245.9,0.18935694]
[1770173565630,4.64888148,2246.5,2245.9,0.18935694]
[1770173565929,2.063,2246.5,2245.9,0.18935694]
[1770173566430,4.64888148,2246.5,2245.9,0.0027539]
[1770173566631,2.58588148,2246.4,2245.9,0.18715791]
[1770173566831,4.64888148,2246.5,2245.9,0.0027539]
[1770173567425,2.58588148,2246.4,2245.9,0.0027539]
[1770173567630,2.58588148,2246.4,2245.7,0.18440401]
[1770173569429,2.58588148,2246.3,2245.7,0.18440401]
[1770173570230,2.58588148,2246.3,2245.4,0.18403654]
[1770173570428,2.58588148,2246.1,2245.0,0.18403654]
[1770173570737,2.58588148,2245.9,2245.0,0.18403654]
[1770173571034,2.590344,2245.9,2245.0,0.18403654]
[1770173571435,2.58588148,2245.8,2245.0,0.1815937]
[1770173572034,2.58588148,2245.7,2245.0,0.1815937]
[1770173572234,2.108,2245.6,2245.0,0.1815937]
[1770173574638,4.69388148,2245.6,2244.6,0.18278947]
[1770173574835,4.69388148,2245.6,2244.5,0.1]
[1770173575034,4.69388148,2245.6,2244.2,0.18278947]
[1770173575035,2.58588148,2245.2,2244.2,0.18278947]
[1770173575237,2.11,2245.1,2244.2,0.18278947]
[1770173576740,2.11,2245.1,2244.0,0.18296038]
[1770173576944,4.69588148,2245.1,2244.0,0.18296038]
[1770173577739,2.58588148,2245.0,2243.9,0.40492494]
[1770173578133,9.15288148,2245.1,2243.9,0.22196456]
[1770173578442,4.68308917,2244.3,2243.0,0.18313447]
[1770173578642,2.116,2244.2,2243.0,0.18313447]
[1770173578834,2.58959266,2244.3,2243.0,0.18313447]
[1770173579042,2.116,2244.2,2243.0,0.18313447]
[1770173584643,2.10150506,2243.9,2243.0,0.18313447]
[1770173584844,2.10150506,2243.9,2242.7,0.18220381]
[1770173585144,2.116,2244.2,2242.7,0.18220381]
[1770173586138,2.10150506,2244.1,2242.7,0.18220381]
[1770173588149,0.00371118,2244.3,2242.8,0.18165353]